[Event "1st 4NCL International Open"]
[Site "Telford"]
[Date "2018.10.30"]
[Round "1"]
[White "Gourlay, Iain"]
[Black "Jukes, Sam"]
[Result "1-0"]
[ECO "A11"]
[WhiteElo "2358"]
[BlackElo "1863"]
[Annotator "NA RC"]
[PlyCount "49"]
[EventDate "2018.10.31"]
[EventType "swiss"]
[EventCountry "GBR"]
[SourceTitle "playchess.com"]
[Source "ChessBase"]
[SourceQuality "1"]
[TimeControl "5400+30"]

1. Nf3 {[%emt 0:00:00]} d5 {[%emt 0:00:00]} 2. g3 {[%emt 0:00:00]} Nf6 {[%emt 0:00:12]} 3. Bg2 {[%emt 0:00:20]} c6 {[%emt 0:00:53]} 4. c4 {[%emt 0:00:49]} dxc4 {[%emt 0:01:16]} 5. O-O {[%emt 0:00:24]} Nbd7 {[%emt 0:01:55]} 6. Na3 {[%emt 0:02:32]} Nb6 {[%emt 0:11:37]} 7. Qc2 {[%emt 0:01:50]} Qd5 {[%emt 0:04:14] A11: English Opening: 1...c6} (7... g6 8. Nxc4 Nxc4 9. Qxc4 Bg7 10. Re1 O-O 11. d4 Ne4 12. Bf4 Be6 13. Qc2 f5 14. e3 Bd5 15. Ne5 {½-½ (50) Nepomniachtchi,I (2768)-Kobalia,M (2619) Satka 2018}) 8. b3 {[%emt 0:02:35]} cxb3 {[%emt 0:06:40]} 9. axb3 {[%emt 0:00:17] LiveBook: 52 Games} Bf5 {[%emt 0:01:41]} 10. d3 {[%emt 0:01:18]} Qd8 {[%emt 0:10:57]} 11. Nc4 {[%emt 0:08:33]} Nxc4 {[%emt 0:01:12]} 12. bxc4 {[%emt 0:00:23]} e6 $146 {[%emt 0:01:27]} ({Predecessor:} 12... g6 13. Be3 Bg7 14. Bxa7 O-O 15. Qb2 {0-1 (64) Cox,J (2392)-Pavlovicius,V (2191) Vilnius 2014}) 13. Be3 {[%emt 0:11:31]} Bd6 {[%emt 0:10:21]} 14. Rfb1 {[%emt 0:03:58]} Ng4 {[%emt 0:05:06]} 15. Bg5 {[%emt 0:21:22]} f6 {[%emt 0:02:33]} 16. c5 {[%emt 0:03:20]} Be5 {[%emt 0:03:27]} 17. Nxe5 {[%emt 0:02:34]} Nxe5 {[%emt 0:00:47]} 18. Bf4 {[%emt 0:02:01]} Nxd3 {[%emt 0:08:59]} 19. Rd1 {[%emt 0:06:56]} Qd4 {[%emt 0:09:13]} 20. exd3 {[%emt 0:01:12]} Bg4 {[%emt 0:02:08]} 21. Re1 {[%emt 0:03:10]} e5 {[%emt 0:01:20]} 22. Ra4 $18 {[%emt 0:03:17]} Qd7 {[%emt 0:01:17]} 23. Bxe5 {[%emt 0:09:27]} fxe5 {[%emt 0:00:32]} 24. Rxe5+ {[%emt 0:00:08]} Kd8 {[%emt 0:00:22]} 25. Qc3 {[%emt 0:01:24]} 1-0

[Event "1st 4NCL International Open"]
[Site "Telford"]
[Date "2018.11.02"]
[Round "2"]
[White "Dgebuadze, Alexandre"]
[Black "Eggleston, David J"]
[Result "1/2-1/2"]
[ECO "A47"]
[WhiteElo "2484"]
[BlackElo "2406"]
[Annotator "RC"]
[PlyCount "51"]
[EventDate "2018.10.31"]
[EventType "swiss"]
[EventCountry "GBR"]
[SourceTitle "playchess.com"]
[Source "ChessBase"]
[SourceQuality "1"]
[TimeControl "5400+30"]

1. d4 {[%emt 0:00:00]} Nf6 {[%emt 0:02:35]} 2. Nf3 {[%emt 0:00:08]} e6 {[%emt 0:01:17]} 3. c3 {[%emt 0:01:12]} b6 {[%emt 0:00:59]} 4. Bg5 {[%emt 0:00:19]} Bb7 {[%emt 0:00:21]} 5. Nbd2 {[%emt 0:00:20]} Be7 {[%emt 0:01:28]} 6. e3 {[%emt 0:02:13]} c5 {[%emt 0:02:37]} 7. Bd3 {[%emt 0:00:23]} d6 {[%emt 0:02:46]} 8. O-O {[%emt 0:06:40]} Nbd7 {[%emt 0:00:43]} 9. Re1 {[%emt 0:04:13]} h6 {[%emt 0:01:30]} 10. Bxf6 {[%emt 0:00:18]} Bxf6 {[%emt 0:03:38]} 11. Ne4 {[%emt 0:12:18]} Be7 {[%emt 0:00:19]} 12. Ng3 {[%emt 0:01:57]} O-O {[%emt 0:10:30]} 13. e4 {[%emt 0:00:23]} cxd4 {[%emt 0:00:13]} 14. cxd4 {[%emt 0:03:42]} a6 {[%emt 0:03:22]} 15. Qe2 {[%emt 0:01:47]} Re8 {[%emt 0:08:28]} 16. a3 {[%emt 0:12:02]} Bf8 {[%emt 0:04:41]} 17. Rad1 {[%emt 0:03:06]} b5 {[%emt 0:06:07]} 18. Bb1 {[%emt 0:01:06]} Qc7 {[%emt 0:07:14]} 19. e5 {[%emt 0:04:11]} g6 {[%emt 0:05:24]} 20. h4 {[%emt 0:11:36]} dxe5 {[%emt 0:16:05]} 21. h5 {[%emt 0:00:59]} g5 {[%emt 0:00:30]} 22. Rc1 {[%emt 0:10:52]} Qb8 {[%emt 0:02:51]} 23. Qd3 {[%emt 0:06:23]} Bg7 {[%emt 0:02:17]} 24. Qh7+ {[%emt 0:04:06]} Kf8 {[%emt 0:00:01]} 25. Nxe5 {[%emt 0:00:16]} Nf6 {[%emt 0:03:51]} 26. Qc2 {[%emt 0:06:24]} 1/2-1/2

[Event "1st 4NCL International Open"]
[Site "Telford"]
[Date "2018.11.02"]
[Round "2"]
[White "Fernandez, Daniel Howard"]
[Black "Rahul Srivatshav P"]
[Result "1-0"]
[ECO "D00"]
[WhiteElo "2461"]
[BlackElo "2395"]
[Annotator "RC"]
[PlyCount "81"]
[EventDate "2018.10.31"]
[EventType "swiss"]
[EventCountry "GBR"]
[SourceTitle "playchess.com"]
[Source "ChessBase"]
[SourceQuality "1"]
[TimeControl "5400+30"]

1. d4 {[%emt 0:10:07]} Nf6 {[%emt 0:00:23]} 2. Bg5 {[%emt 0:04:01]} g6 {[%emt 0:00:21]} 3. Bxf6 {[%emt 0:02:32]} exf6 {[%emt 0:00:08]} 4. e3 {[%emt 0:00:43]} d5 {[%emt 0:00:14]} 5. h4 {[%emt 0:02:45]} h5 {[%emt 0:00:56]} 6. c4 {[%emt 0:03:56]} dxc4 {[%emt 0:01:59]} 7. Bxc4 {[%emt 0:00:46]} Bd6 {[%emt 0:00:23]} 8. Nc3 {[%emt 0:00:18]} c6 {[%emt 0:00:37]} 9. Nge2 {[%emt 0:04:00]} Nd7 {[%emt 0:14:16]} 10. a3 {[%emt 0:04:22]} Qe7 {[%emt 0:04:56]} 11. g3 {[%emt 0:05:12]} Nb6 {[%emt 0:02:31]} 12. Ba2 {[%emt 0:09:19]} Bg4 {[%emt 0:06:32]} 13. Qd3 {[%emt 0:02:23]} O-O-O {[%emt 0:08:07]} 14. b4 {[%emt 0:03:46]} Rhe8 {[%emt 0:08:07]} 15. Kf1 {[%emt 0:01:04]} Bf3 {[%emt 0:07:37]} 16. Rh2 {[%emt 0:00:18]} Kb8 {[%emt 0:09:59]} 17. Ng1 {[%emt 0:05:30]} Bg4 {[%emt 0:00:24]} 18. Kg2 {[%emt 0:00:19]} g5 {[%emt 0:02:48]} 19. Nf3 {[%emt 0:03:34]} a6 {[%emt 0:03:12]} 20. Rhh1 {[%emt 0:02:21]} Nd7 {[%emt 0:01:55]} 21. Nh2 {[%emt 0:04:35]} Be6 {[%emt 0:04:45]} 22. Bxe6 {[%emt 0:03:27]} fxe6 {[%emt 0:00:11]} 23. hxg5 {[%emt 0:00:19]} fxg5 {[%emt 0:00:24]} 24. Ne4 {[%emt 0:01:50]} g4 {[%emt 0:04:29]} 25. Nf1 {[%emt 0:00:15]} Rh8 {[%emt 0:05:19]} 26. Nfd2 {[%emt 0:00:21]} Bc7 {[%emt 0:00:27]} 27. a4 {[%emt 0:03:12]} h4 {[%emt 0:03:29]} 28. gxh4 {[%emt 0:00:56]} Ne5 {[%emt 0:01:19]} 29. Qe2 {[%emt 0:00:10]} Ng6 {[%emt 0:00:03]} 30. h5 {[%emt 0:00:26]} Nh4+ {[%emt 0:00:10]} 31. Kf1 {[%emt 0:00:02]} Rdg8 {[%emt 0:01:50]} 32. Rg1 {[%emt 0:00:11]} Rxh5 {[%emt 0:02:05]} 33. Rxg4 {[%emt 0:00:13]} Ng6 {[%emt 0:00:52]} 34. Rg1 {[%emt 0:01:08]} Rgh8 {[%emt 0:00:16]} 35. b5 {[%emt 0:04:40]} Rh1 {[%emt 0:00:09]} 36. Qg4 {[%emt 0:00:26]} Rxg1+ {[%emt 0:01:45]} 37. Qxg1 {[%emt 0:00:03]} cxb5 {[%emt 0:00:31]} 38. axb5 {[%emt 0:00:23]} Qd7 {[%emt 0:02:08]} 39. Rb1 {[%emt 0:00:18]} Ne5 {[%emt 0:01:35]} 40. b6 {[%emt 0:02:03]} Bd8 {[%emt 0:02:13]} 41. Qg3 {[%emt 0:00:18]} 1-0

[Event "1st 4NCL International Open"]
[Site "Telford"]
[Date "2018.11.02"]
[Round "2"]
[White "Richardson, John R"]
[Black "Zabrocki, Philip Am"]
[Result "1-0"]
[ECO "E69"]
[WhiteElo "2213"]
[BlackElo "1952"]
[Annotator "ChessBase"]
[PlyCount "53"]
[EventDate "2018.10.31"]
[EventType "swiss"]
[EventCountry "GBR"]
[SourceTitle "playchess.com"]
[Source "ChessBase"]
[SourceQuality "1"]
[TimeControl "5400+30"]

1. d4 {[%emt 0:00:00]} Nf6 {[%emt 0:00:10]} 2. c4 {[%emt 0:00:00]} g6 {[%emt 0:00:09]} 3. g3 {[%emt 0:00:00]} Bg7 {[%emt 0:00:04]} 4. Bg2 {[%emt 0:00:00]} O-O {[%emt 0:00:07]} 5. Nc3 {[%emt 0:00:00]} d6 {[%emt 0:00:06]} 6. Nf3 {[%emt 0:00:00]} c6 {[%emt 0:00:18]} 7. O-O {[%emt 0:00:06]} Qa5 {[%emt 0:00:07]} 8. e4 {[%emt 0:01:22]} e5 {[%emt 0:00:08]} 9. h3 {[%emt 0:01:01]} Nbd7 {[%emt 0:00:35]} 10. Re1 {[%emt 0:01:38]} Re8 {[%emt 0:03:05]} 11. d5 {[%emt 0:00:16]} cxd5 {[%emt 0:00:07]} 12. cxd5 {[%emt 0:00:02]} b5 {[%emt 0:00:16]} 13. a3 {[%emt 0:00:22]} a6 {[%emt 0:01:06]} 14. b4 {[%emt 0:00:09]} Qc7 {[%emt 0:02:38]} 15. Bd2 {[%emt 0:00:20]} Nb6 {[%emt 0:00:34]} 16. a4 {[%emt 0:11:59]} Nxa4 {[%emt 0:12:07]} 17. Nxa4 {[%emt 0:00:11]} bxa4 {[%emt 0:00:02]} 18. Rc1 {[%emt 0:20:44]} Qd7 {[%emt 0:12:39]} 19. Rc4 {[%emt 0:08:49]} Bb7 {[%emt 0:02:41]} 20. Be3 {[%emt 0:01:09]} Rec8 {[%emt 0:05:25]} 21. Nd2 {[%emt 0:00:18]} a5 {[%emt 0:07:31]} 22. b5 {[%emt 0:02:00]} Qxb5 {[%emt 0:08:30]} 23. Rxa4 {[%emt 0:00:10]} Rc1 {[%emt 0:06:04]} 24. Qxc1 {[%emt 0:00:48]} Qxa4 {[%emt 0:01:09]} 25. Qc7 {[%emt 0:00:11]} Qb4 {[%emt 0:06:59]} 26. Rb1 {[%emt 0:05:07]} Rc8 {[%emt 0:03:24]} 27. Qe7 {[%emt 0:03:00]} 1-0

[Event "1st 4NCL International Open"]
[Site "Telford"]
[Date "2018.11.02"]
[Round "2"]
[White "Hill, Alistair"]
[Black "Bennett, Dominic L"]
[Result "1/2-1/2"]
[ECO "B07"]
[WhiteElo "2203"]
[BlackElo "1933"]
[Annotator "ChessBase"]
[PlyCount "104"]
[EventDate "2018.10.31"]
[EventType "swiss"]
[EventCountry "GBR"]
[SourceTitle "playchess.com"]
[Source "ChessBase"]
[SourceQuality "1"]
[TimeControl "5400+30"]

1. Nf3 {[%emt 0:00:00]} d6 {[%emt 0:01:25]} 2. d4 {[%emt 0:00:00]} c6 {[%emt 0:01:58]} 3. e4 {[%emt 0:02:41]} Nf6 {[%emt 0:01:49]} 4. Bd3 {[%emt 0:00:25]} g6 {[%emt 0:01:51]} 5. O-O {[%emt 0:00:06]} Bg7 {[%emt 0:01:11]} 6. Re1 {[%emt 0:00:08]} O-O {[%emt 0:02:07]} 7. c3 {[%emt 0:02:20]} Na6 {[%emt 0:06:29]} 8. h3 {[%emt 0:00:35]} c5 {[%emt 0:03:07]} 9. d5 {[%emt 0:13:01]} Rb8 {[%emt 0:10:11]} 10. c4 {[%emt 0:02:33]} b5 {[%emt 0:09:04]} 11. cxb5 {[%emt 0:06:30]} Nc7 {[%emt 0:00:41]} 12. Nc3 {[%emt 0:00:53]} Nd7 {[%emt 0:01:30]} 13. a4 {[%emt 0:02:08]} a6 {[%emt 0:04:47]} 14. Qe2 {[%emt 0:05:32]} Re8 {[%emt 0:04:49]} 15. Bf4 {[%emt 0:06:44]} Nf8 {[%emt 0:01:10]} 16. e5 {[%emt 0:06:13]} axb5 {[%emt 0:08:46]} 17. axb5 {[%emt 0:02:40]} Nd7 {[%emt 0:02:45]} 18. Ra7 {[%emt 0:27:03]} Rb7 {[%emt 0:05:39]} 19. Rxb7 {[%emt 0:07:28]} Bxb7 {[%emt 0:00:20]} 20. e6 {[%emt 0:02:11]} fxe6 {[%emt 0:02:08]} 21. dxe6 {[%emt 0:00:02]} Nf6 {[%emt 0:08:05]} 22. Ra1 {[%emt 0:03:10]} Nfd5 {[%emt 0:03:47]} 23. Bd2 {[%emt 0:01:07]} Rf8 {[%emt 0:01:22]} 24. Be4 {[%emt 0:01:34]} Nxc3 {[%emt 0:04:11]} 25. bxc3 {[%emt 0:00:13]} d5 {[%emt 0:00:52]} 26. Bc2 {[%emt 0:01:00]} d4 {[%emt 0:02:54]} 27. cxd4 {[%emt 0:01:47]} cxd4 {[%emt 0:00:19]} 28. Rd1 {[%emt 0:00:53]} Qa8 {[%emt 0:02:53]} 29. Ne1 {[%emt 0:01:57]} Nd5 {[%emt 0:01:02]} 30. Be4 {[%emt 0:02:05]} Qa2 {[%emt 0:02:27]} 31. Bxd5 {[%emt 0:00:28]} Qxd5 {[%emt 0:01:16]} 32. Bb4 {[%emt 0:00:13]} Qg5 {[%emt 0:01:04]} 33. Qd2 {[%emt 0:01:38]} Qf6 {[%emt 0:00:57]} 34. Qe2 {[%emt 0:00:31]} Qg5 {[%emt 0:00:29]} 35. Rd2 {[%emt 0:00:46]} Rf5 {[%emt 0:00:53]} 36. f3 {[%emt 0:00:52]} Re5 {[%emt 0:01:08]} 37. Qf2 {[%emt 0:00:30]} Rxb5 {[%emt 0:00:49]} 38. Rxd4 {[%emt 0:00:28]} Bxd4 {[%emt 0:01:29]} 39. Qxd4 {[%emt 0:00:02]} Qe5 {[%emt 0:00:20]} 40. Qd8+ {[%emt 0:00:21]} Kg7 {[%emt 0:00:31]} 41. Qxe7+ {[%emt 0:00:10]} Kh6 {[%emt 0:00:16]} 42. Bd2+ {[%emt 0:00:21]} g5 {[%emt 0:00:12]} 43. Kh1 {[%emt 0:01:39]} Rb1 {[%emt 0:00:57]} 44. Qf8+ {[%emt 0:00:22]} Kh5 {[%emt 0:01:11]} 45. Qf7+ {[%emt 0:00:09]} Kh6 {[%emt 0:00:26]} 46. Qf8+ {[%emt 0:00:36]} Kh5 {[%emt 0:00:22]} 47. Qf7+ {[%emt 0:00:44]} Kh6 {[%emt 0:00:24]} 48. e7 {[%emt 0:00:21]} Bc6 {[%emt 0:00:59]} 49. Qf8+ {[%emt 0:00:27]} Kh5 {[%emt 0:00:32]} 50. Qf7+ {[%emt 0:00:10]} Kh6 {[%emt 0:00:09]} 51. Qf8+ {[%emt 0:00:49]} Kh5 {[%emt 0:00:13]} 52. Qf7+ {[%emt 0:00:41]} Kh6 {[%emt 0:00:16]} 1/2-1/2

[Event "1st 4NCL International Open"]
[Site "Telford"]
[Date "2018.11.02"]
[Round "2"]
[White "Ferrington, Nigel M"]
[Black "Rahulan, Thivyaa"]
[Result "1-0"]
[ECO "C01"]
[WhiteElo "2130"]
[BlackElo "1868"]
[Annotator "ChessBase"]
[PlyCount "75"]
[EventDate "2018.10.31"]
[EventType "swiss"]
[EventCountry "GBR"]
[SourceTitle "playchess.com"]
[Source "ChessBase"]
[SourceQuality "1"]
[TimeControl "5400+30"]

1. e4 {[%emt 0:00:00]} e6 {[%emt 0:00:00]} 2. d4 {[%emt 0:00:00]} d5 {[%emt 0:00:00]} 3. Bd3 {[%emt 0:00:08]} Nf6 {[%emt 0:00:41]} 4. e5 {[%emt 0:00:04]} Nfd7 {[%emt 0:00:11]} 5. f4 {[%emt 0:00:28]} c5 {[%emt 0:01:32]} 6. c3 {[%emt 0:00:14]} Nc6 {[%emt 0:01:19]} 7. Nf3 {[%emt 0:00:13]} a6 {[%emt 0:02:11]} 8. O-O {[%emt 0:00:58]} Be7 {[%emt 0:01:50]} 9. Be3 {[%emt 0:01:48]} b5 {[%emt 0:02:36]} 10. a3 {[%emt 0:06:52]} Bb7 {[%emt 0:03:10]} 11. Nbd2 {[%emt 0:06:26]} Qb6 {[%emt 0:04:20]} 12. b4 {[%emt 0:01:33]} c4 {[%emt 0:05:16]} 13. Bc2 {[%emt 0:00:40]} a5 {[%emt 0:02:18]} 14. Qe2 {[%emt 0:01:24]} h6 {[%emt 0:04:26]} 15. f5 {[%emt 0:06:32]} Kd8 {[%emt 0:06:47]} 16. fxe6 {[%emt 0:02:03]} fxe6 {[%emt 0:00:06]} 17. Qf2 {[%emt 0:06:54]} Kc7 {[%emt 0:07:06]} 18. Qg3 {[%emt 0:01:03]} g5 {[%emt 0:03:16]} 19. h3 {[%emt 0:02:34]} axb4 {[%emt 0:06:38]} 20. axb4 {[%emt 0:00:34]} Ra6 {[%emt 0:03:44]} 21. Nh2 {[%emt 0:03:08]} Rha8 {[%emt 0:03:15]} 22. Rac1 {[%emt 0:02:13]} Rf8 {[%emt 0:16:27]} 23. Ng4 {[%emt 0:04:40]} Rxf1+ {[%emt 0:04:19]} 24. Nxf1 {[%emt 0:02:08]} Ra3 {[%emt 0:02:32]} 25. Bd1 {[%emt 0:02:51]} Bf8 {[%emt 0:02:46]} 26. Nf6 {[%emt 0:01:45]} Nxf6 {[%emt 0:07:44]} 27. exf6+ {[%emt 0:00:06]} Kd7 {[%emt 0:00:08]} 28. h4 {[%emt 0:01:56]} Bd6 {[%emt 0:02:08]} 29. Qg4 {[%emt 0:02:23]} Qd8 {[%emt 0:02:18]} 30. hxg5 {[%emt 0:00:52]} hxg5 {[%emt 0:00:22]} 31. Qxg5 {[%emt 0:12:27]} Qf8 {[%emt 0:04:23]} 32. Bg4 {[%emt 0:01:53]} Nd8 {[%emt 0:00:35]} 33. Nd2 {[%emt 0:06:43]} Nf7 {[%emt 0:00:31]} 34. Qh4 {[%emt 0:00:55]} Bxb4 {[%emt 0:00:44]} 35. Nb1 {[%emt 0:08:09]} Rb3 {[%emt 0:00:29]} 36. Qh3 {[%emt 0:02:03]} Bd6 {[%emt 0:01:10]} 37. Bxe6+ {[%emt 0:00:26]} Kc7 {[%emt 0:00:05]} 38. Qh7 {[%emt 0:00:43]} 1-0

[Event "1st 4NCL International Open"]
[Site "Telford"]
[Date "2018.11.02"]
[Round "2"]
[White "Ahluwalia, Amardip"]
[Black "Ther, Mate"]
[Result "1/2-1/2"]
[ECO "A25"]
[WhiteElo "2085"]
[BlackElo "1759"]
[Annotator "NA"]
[PlyCount "145"]
[EventDate "2018.10.31"]
[EventType "swiss"]
[EventCountry "GBR"]
[SourceTitle "playchess.com"]
[Source "ChessBase"]
[SourceQuality "1"]
[TimeControl "5400+30"]

1. c4 {[%emt 0:00:00]} e5 {[%emt 0:00:08]} 2. g3 {[%emt 0:00:37]} f5 {[%emt 0:01:50]} 3. Bg2 {[%emt 0:00:13]} Nf6 {[%emt 0:00:00]} 4. Nc3 {[%emt 0:01:10]} Nc6 {[%emt 0:00:21]} 5. d3 {[%emt 0:01:03]} Bc5 {[%emt 0:02:34]} 6. e3 {[%emt 0:02:11]} O-O {[%emt 0:03:24]} 7. Nge2 {[%emt 0:01:16]} Qe8 {[%emt 0:02:56]} 8. O-O {[%emt 0:02:27]} Qh5 {[%emt 0:06:08]} 9. a3 {[%emt 0:03:05]} a5 {[%emt 0:00:36]} 10. Rb1 {[%emt 0:00:16]} d6 {[%emt 0:05:41]} 11. d4 {[%emt 0:04:33]} Ba7 {[%emt 0:05:43]} 12. Nb5 {[%emt 0:07:25]} Bb8 {[%emt 0:03:24]} 13. Nec3 {[%emt 0:07:06]} Qg6 {[%emt 0:05:25]} 14. Qc2 {[%emt 0:08:27]} Na7 {[%emt 0:03:23]} 15. c5 {[%emt 0:09:07]} exd4 {[%emt 0:02:53]} 16. exd4 {[%emt 0:00:58]} Nxb5 {[%emt 0:00:41]} 17. Nxb5 {[%emt 0:01:11]} d5 {[%emt 0:08:39]} 18. Bf4 {[%emt 0:04:04]} c6 {[%emt 0:03:48]} 19. Nc7 {[%emt 0:02:15]} Bxc7 {[%emt 0:03:21]} 20. Bxc7 {[%emt 0:00:35]} Be6 {[%emt 0:01:49]} 21. Qb3 {[%emt 0:00:54]} Qf7 {[%emt 0:01:28]} 22. Be5 {[%emt 0:03:28]} Rfe8 {[%emt 0:03:01]} 23. Rfe1 {[%emt 0:01:37]} Ne4 {[%emt 0:02:20]} 24. Re2 {[%emt 0:01:16]} Qd7 {[%emt 0:02:44]} 25. Rbe1 {[%emt 0:01:40]} Kf8 {[%emt 0:01:55]} 26. Qf3 {[%emt 0:07:57]} Qf7 {[%emt 0:05:02]} 27. Qf4 {[%emt 0:03:00]} Kg8 {[%emt 0:01:39]} 28. h4 {[%emt 0:13:02]} Rac8 {[%emt 0:04:53]} 29. Bh3 {[%emt 0:03:06]} g6 {[%emt 0:03:57]} 30. Bg2 {[%emt 0:03:25]} a4 {[%emt 0:04:43]} 31. Qc1 {[%emt 0:02:37]} Ra8 {[%emt 0:00:59]} 32. Qc2 {[%emt 0:00:33]} Ra7 {[%emt 0:00:21]} 33. Re3 {[%emt 0:00:26]} Raa8 {[%emt 0:01:59]} 34. Qe2 {[%emt 0:01:24]} Bd7 {[%emt 0:02:19]} 35. Qd1 {[%emt 0:00:56]} Be6 {[%emt 0:01:07]} 36. Bf1 {[%emt 0:00:40]} Kf8 {[%emt 0:02:33]} 37. Bd3 {[%emt 0:00:22]} Ra7 {[%emt 0:01:29]} 38. Bc2 {[%emt 0:00:05]} Bd7 {[%emt 0:01:21]} 39. Bxa4 {[%emt 0:00:14]} Rea8 {[%emt 0:01:08]} 40. Bc2 {[%emt 0:00:09]} Re8 {[%emt 0:00:12]} 41. Bd3 {[%emt 0:00:30]} Raa8 {[%emt 0:00:14]} 42. Bf1 {[%emt 0:00:42]} Be6 {[%emt 0:00:33]} 43. Bg2 {[%emt 0:00:11]} Ra7 {[%emt 0:00:11]} 44. Qb3 {[%emt 0:00:10]} Kg8 {[%emt 0:00:41]} 45. Qb6 {[%emt 0:00:54]} Ra6 {[%emt 0:00:22]} 46. Qb4 {[%emt 0:00:12]} Ra7 {[%emt 0:00:40]} 47. Bf1 {[%emt 0:00:08]} Raa8 {[%emt 0:00:21]} 48. Bd3 {[%emt 0:01:40]} Ra7 {[%emt 0:00:39]} 49. Qb6 {[%emt 0:01:13]} Raa8 {[%emt 0:00:10]} 50. f3 {[%emt 0:00:15]} Nxg3 {[%emt 0:00:42]} 51. Bxg3 {[%emt 0:01:51]} f4 {[%emt 0:00:07]} 52. Rxe6 {[%emt 0:00:16]} Rxe6 {[%emt 0:01:20]} 53. Rxe6 {[%emt 0:00:01]} Qxe6 {[%emt 0:00:01]} 54. Bf2 {[%emt 0:01:08]} Qe7 {[%emt 0:00:51]} 55. Qb4 {[%emt 0:00:02]} g5 {[%emt 0:00:26]} 56. Qe1 {[%emt 0:00:19]} Qxe1+ {[%emt 0:00:56]} 57. Bxe1 {[%emt 0:00:01]} Re8 {[%emt 0:00:15]} 58. Bd2 {[%emt 0:00:12]} gxh4 {[%emt 0:00:20]} 59. Bxf4 {[%emt 0:00:07]} Re1+ {[%emt 0:00:03]} 60. Kf2 {[%emt 0:00:07]} Rd1 {[%emt 0:00:20]} 61. Ke2 {[%emt 0:00:39]} Rg1 {[%emt 0:00:10]} 62. Kd2 {[%emt 0:00:07]} Rg2+ {[%emt 0:00:07]} 63. Kc3 {[%emt 0:00:31]} h3 {[%emt 0:00:17]} 64. Bf5 {[%emt 0:01:18]} Rf2 {[%emt 0:00:15]} 65. Bg4 {[%emt 0:00:30]} Kf7 {[%emt 0:01:12]} 66. Bg3 {[%emt 0:01:14]} h2 {[%emt 0:00:59]} 67. Bxh2 {[%emt 0:00:04]} Rxh2 {[%emt 0:00:06]} 68. Bc8 {[%emt 0:00:02]} Ke7 {[%emt 0:00:17]} 69. b4 {[%emt 0:00:57]} Rf2 {[%emt 0:00:14]} 70. Bg4 {[%emt 0:00:06]} Ra2 {[%emt 0:00:17]} 71. Kb3 {[%emt 0:00:07]} Rd2 {[%emt 0:00:18]} 72. Kc3 {[%emt 0:00:04]} Ra2 {[%emt 0:00:18]} 73. Kb3 {[%emt 0:00:03]} 1/2-1/2

[Event "1st 4NCL International Open"]
[Site "Telford"]
[Date "2018.11.02"]
[Round "2"]
[White "Ratnesan, Ranesh"]
[Black "Akeya-Price, Robert"]
[Result "1-0"]
[ECO "A14"]
[WhiteElo "1994"]
[BlackElo "1730"]
[Annotator "NA"]
[PlyCount "85"]
[EventDate "2018.10.31"]
[EventType "swiss"]
[EventCountry "GBR"]
[SourceTitle "playchess.com"]
[Source "ChessBase"]
[SourceQuality "1"]
[TimeControl "5400+30"]

1. Nf3 {[%emt 0:00:00]} Nf6 {[%emt 0:00:00]} 2. g3 {[%emt 0:00:00]} e6 {[%emt 0:00:00]} 3. c4 {[%emt 0:00:00]} b6 {[%emt 0:00:14]} 4. Bg2 {[%emt 0:00:09]} Bb7 {[%emt 0:00:06]} 5. b3 {[%emt 0:00:17]} Be7 {[%emt 0:00:55]} 6. Bb2 {[%emt 0:00:10]} O-O {[%emt 0:00:34]} 7. O-O {[%emt 0:00:24]} d5 {[%emt 0:09:49]} 8. e3 {[%emt 0:00:17]} c5 {[%emt 0:02:30]} 9. Qe2 {[%emt 0:00:26]} Nc6 {[%emt 0:05:19]} 10. Rd1 {[%emt 0:01:17]} Rc8 {[%emt 0:01:39]} 11. cxd5 {[%emt 0:04:31]} Nxd5 {[%emt 0:03:04]} 12. Nc3 {[%emt 0:04:19]} Ndb4 {[%emt 0:14:45]} 13. d4 {[%emt 0:05:55]} Ba6 {[%emt 0:21:02]} 14. Qd2 {[%emt 0:05:17]} cxd4 {[%emt 0:04:51]} 15. exd4 {[%emt 0:01:44]} Nd3 {[%emt 0:01:04]} 16. Ne4 {[%emt 0:05:05]} Bb4 {[%emt 0:02:33]} 17. Qe2 {[%emt 0:02:59]} Nxb2 {[%emt 0:13:01]} 18. Qxb2 {[%emt 0:00:26]} Ne7 {[%emt 0:05:40]} 19. a3 {[%emt 0:03:43]} Bd6 {[%emt 0:00:21]} 20. Ne5 {[%emt 0:00:53]} f6 {[%emt 0:03:36]} 21. Nf3 {[%emt 0:11:30]} Nd5 {[%emt 0:01:25]} 22. Rac1 {[%emt 0:02:01]} Qe7 {[%emt 0:01:10]} 23. b4 {[%emt 0:00:22]} Rxc1 {[%emt 0:00:22]} 24. Rxc1 {[%emt 0:01:04]} Rc8 {[%emt 0:00:18]} 25. Re1 {[%emt 0:01:29]} Re8 {[%emt 0:05:15]} 26. Qb3 {[%emt 0:02:01]} Bb8 {[%emt 0:01:53]} 27. Nh4 {[%emt 0:02:28]} Qf7 {[%emt 0:01:01]} 28. Nc3 {[%emt 0:03:03]} Nxc3 {[%emt 0:00:53]} 29. Qxc3 {[%emt 0:00:01]} Bb7 {[%emt 0:00:22]} 30. Nf3 {[%emt 0:01:20]} Qc7 {[%emt 0:00:35]} 31. Qe3 {[%emt 0:01:05]} Bd5 {[%emt 0:00:19]} 32. Bh3 {[%emt 0:03:06]} Qd7 {[%emt 0:00:25]} 33. Nd2 {[%emt 0:00:25]} Qf7 {[%emt 0:00:40]} 34. Qd3 {[%emt 0:03:14]} g6 {[%emt 0:00:39]} 35. Ne4 {[%emt 0:00:32]} f5 {[%emt 0:00:30]} 36. Nc3 {[%emt 0:00:27]} Qd7 {[%emt 0:00:27]} 37. Qd2 {[%emt 0:01:07]} Kg7 {[%emt 0:00:26]} 38. Bf1 {[%emt 0:00:22]} Rd8 {[%emt 0:00:40]} 39. Bb5 {[%emt 0:01:48]} Qf7 {[%emt 0:00:29]} 40. Nxd5 {[%emt 0:03:09]} exd5 {[%emt 0:00:09]} 41. Qg5 {[%emt 0:00:44]} Rd7 {[%emt 0:00:55]} 42. Bxd7 {[%emt 0:00:07]} Qxd7 {[%emt 0:00:03]} 43. Re7+ {[%emt 0:00:09]} 1-0